bitfinex/quotes_ETHUSD_20250821
["timestamp","ask_amount","ask_price","bid_price","bid_amount"]
[1755746156804,7.5551,4326.9,4326.8,0.021]
[1755746157544,8.2259778,4326.9,4326.8,0.021]
[1755746158438,8.3411778,4326.9,4326.8,0.021]
[1755746159138,25.20401337,4326.9,4326.8,0.021]
[1755746159342,5.36213963,4326.9,4326.8,0.3225]
[1755746159547,6.659,4326.9,4326.8,0.7919]
[1755746159915,7.4342,4326.9,4326.8,0.3225]
[1755746160537,3.7752,4326.9,4326.8,0.3225]
[1755746160734,3.1152,4326.9,4326.8,0.7919]
[1755746161063,6.7752,4326.9,4326.8,0.7919]
[1755746161624,3.1152,4326.9,4326.8,0.7919]
[1755746161820,6.7752,4326.9,4326.8,0.7919]
[1755746162326,0.002,4327.8,4326.8,0.7919]
[1755746162537,0.002,4327.8,4326.9,0.4694]
[1755746162742,0.1152,4327.0,4326.9,0.4694]
[1755746162940,0.1152,4327.0,4326.9,0.7709]
[1755746163318,3.7742,4327.0,4326.9,0.7709]
[1755746163519,0.1152,4327.0,4326.9,0.7709]
[1755746164854,0.49262,4327.0,4326.9,0.3015]
[1755746165737,0.49262,4327.0,4326.9,0.7709]
[1755746166135,0.49262,4327.0,4326.8,0.021]
[1755746166337,4.319,4326.9,4326.8,0.021]
[1755746166734,25.53193557,4326.9,4326.8,0.021]
[1755746166935,6.91723963,4326.9,4326.8,0.021]
[1755746167171,10.37223963,4326.9,4326.8,0.021]
[1755746167348,9.91723963,4326.9,4326.8,0.021]
[1755746168163,9.68113963,4326.9,4326.8,0.021]
[1755746168341,3.66,4326.9,4326.8,0.021]
[1755746168544,3.7742,4326.9,4326.8,0.7919]
[1755746169136,3.7742,4326.9,4326.8,0.3225]
[1755746169338,3.7742,4326.9,4326.8,0.7919]
[1755746169339,0.1152,4326.9,4326.8,0.7919]
[1755746169550,3.7742,4326.9,4326.8,0.7919]
[1755746172464,4.15162,4326.9,4326.8,0.3225]
[1755746172665,4.15162,4326.9,4326.8,0.021]
[1755746173078,0.1152,4326.9,4326.8,0.766]
[1755746180151,0.1152,4327.0,4326.8,0.766]
[1755746180351,0.002,4327.8,4326.9,0.45331123]
[1755746180595,0.1152,4327.3,4326.9,0.45331123]
[1755746180802,0.002,4327.8,4327.2,3.3148]
[1755746181117,0.002,4327.8,4327.3,0.1152]
[1755746181283,0.002,4327.8,4327.7,0.3148]
[1755746181809,0.002,4327.8,4327.7,0.745]
[1755746182172,0.002,4327.8,4327.2,0.4302]
[1755746182369,0.002,4327.8,4326.8,0.021]
[1755746182370,0.1152,4327.5,4327.0,0.4302]
[1755746182577,0.002,4327.8,4327.4,0.3148]
[1755746182776,0.002,4327.8,4327.5,0.4302]
[1755746182978,0.1152,4327.6,4327.5,0.4302]
[1755746183185,0.1152,4327.6,4327.5,0.745]
[1755746183499,0.1152,4327.6,4327.5,0.3148]
[1755746184694,0.1152,4327.6,4327.5,0.745]
[1755746186618,0.002,4327.8,4327.5,0.745]
[1755746186823,0.002,4327.8,4327.6,0.45330749]
[1755746187034,0.002,4327.8,4327.7,0.3148]
[1755746187543,0.002,4327.8,4327.7,0.745]
[1755746187745,0.002,4327.8,4327.7,0.8602]
[1755746188609,0.1172,4327.8,4327.2,0.5454]
[1755746188811,0.002,4327.8,4327.2,0.4302]
[1755746189110,0.1152,4327.5,4327.2,0.4302]
[1755746189313,0.1152,4327.5,4326.9,3.656]
[1755746189539,0.1152,4327.5,4327.4,0.3148]
[1755746189745,0.1152,4327.5,4327.4,0.745]
[1755746190119,0.002,4327.8,4327.4,0.3148]
[1755746190326,0.1152,4327.5,4326.9,3.4302]
[1755746190640,0.1152,4327.5,4327.4,0.3148]
[1755746191047,0.1152,4327.5,4327.4,0.745]
[1755746191516,0.1172,4327.8,4327.4,0.745]
[1755746191716,0.1172,4327.8,4327.5,0.45330803]
[1755746192043,0.1172,4327.8,4327.7,0.3148]
[1755746192552,0.002,4327.8,4327.7,0.8602]
[1755746192707,0.002,4327.8,4327.7,3.8602]
[1755746194846,0.002,4327.8,4327.7,0.8602]
[1755746195412,0.002,4327.8,4327.7,0.43]
[1755746195623,0.002,4327.8,4327.7,4.085]
[1755746196019,0.002,4327.8,4327.7,4.5152]
[1755746196232,0.002,4327.8,4327.7,4.4]
[1755746196437,0.002,4327.8,4327.7,7.4]
[1755746198263,0.002,4327.8,4327.7,3.655]
[1755746198464,0.1172,4327.8,4327.7,3.655]
[1755746200460,0.1172,4327.8,4327.6,3.655]
[1755746200637,0.1172,4327.8,4327.2,0.1152]
[1755746200827,0.1172,4327.8,4327.3,3.654]
[1755746202367,0.1172,4327.8,4327.4,0.4702]
[1755746202661,0.1172,4327.8,4327.5,0.4702]
[1755746202865,0.1172,4327.8,4327.3,3.654]
[1755746203062,0.1172,4327.8,4327.4,0.4702]
[1755746203264,0.1172,4327.8,4327.7,0.2888]
[1755746203437,0.1172,4327.8,4327.7,3.9428]
[1755746203633,0.002,4327.8,4327.7,4.413]
[1755746203832,0.002,4327.8,4327.7,7.55130696]
[1755746204034,0.002,4327.8,4327.7,7.5282]
[1755746206669,0.002,4327.8,4327.7,3.654]
[1755746207042,0.0043,4327.8,4327.7,3.654]
[1755746208336,0.1172,4327.8,4327.7,3.654]
[1755746208539,0.1195,4327.8,4327.7,3.654]
[1755746209238,0.1172,4327.8,4327.7,3.654]
[1755746209647,0.1172,4327.8,4327.7,3.9428]
[1755746209944,0.002,4327.8,4327.7,4.43610696]
[1755746210159,0.002,4327.8,4327.7,7.43610696]
[1755746210359,0.002,4327.8,4327.7,23.39197545]
[1755746211487,0.002,4327.8,4327.7,3.2888]
[1755746211658,0.002,4327.8,4327.7,3.0]
[1755746212183,0.002,4327.8,4327.7,3.653]
[1755746212385,0.002,4327.8,4327.7,4.55030696]
[1755746213591,0.002,4327.8,4327.7,7.5272]
[1755746214091,0.002,4327.8,4327.7,9.83789621]
[1755746214261,0.002,4327.8,4327.7,25.81687166]
[1755746215662,0.002,4327.8,4327.7,23.50617545]
[1755746216158,0.002,4327.8,4327.7,25.81687166]
[1755746216361,0.002,4327.8,4327.7,26.47687166]
[1755746218497,0.002,4327.8,4327.7,47.48799684]
[1755746220391,0.002,4327.8,4327.7,31.50902139]
[1755746223397,0.002,4327.9,4327.8,5.97064282]
[1755746223711,0.002,4327.9,4327.8,6.72964282]
[1755746224806,0.002,4328.3,4328.2,2.97042927]
[1755746225009,0.022,4328.8,4328.6,26.98134095]
[1755746225302,0.022,4328.8,4328.6,30.92014095]
[1755746225517,0.022,4328.8,4328.6,27.38534095]
[1755746225710,0.022,4328.8,4328.6,27.77632518]
[1755746226023,0.022,4328.8,4328.6,30.37534095]
[1755746226310,0.022,4328.8,4328.6,27.77632518]
[1755746226623,0.022,4328.8,4328.6,30.84554095]
[1755746226924,0.022,4328.8,4328.6,26.43654095]
[1755746227104,0.022,4328.8,4328.6,30.37534095]
[1755746227279,0.022,4328.8,4328.6,27.77632518]
[1755746227605,0.0043,4328.7,4328.6,3.1152]
[1755746227810,0.0043,4328.7,4328.6,6.7652]
[1755746228244,0.002,4328.7,4328.6,7.054]
[1755746228380,0.002,4328.7,4328.6,9.83441577]
[1755746228579,0.002,4328.7,4328.6,14.02441577]
[1755746229011,0.002,4328.7,4328.6,14.68441577]
[1755746229877,0.002,4328.7,4328.6,31.74791319]
[1755746230111,0.002,4328.7,4328.6,35.86711319]
[1755746230299,0.002,4328.7,4328.6,10.44798801]
[1755746230501,0.0043,4328.7,4328.6,29.13789742]
[1755746230830,0.002,4328.7,4328.6,35.20711319]
[1755746231028,0.002,4328.7,4328.6,35.39691319]
[1755746231224,0.002,4328.7,4328.6,32.13789742]
[1755746231582,0.002,4328.7,4328.6,35.84521319]
[1755746231784,0.002,4328.7,4328.6,28.48889742]
[1755746232025,0.002,4328.7,4328.6,34.44811319]
[1755746232513,0.002,4328.7,4328.6,30.25811319]
[1755746233094,0.002,4328.7,4328.6,30.99521319]
[1755746233303,0.002,4328.7,4328.6,30.56021319]
[1755746233498,0.3174,4328.7,4328.6,24.29889742]
[1755746233694,0.3174,4328.7,4328.6,30.25711319]
[1755746234019,0.3174,4328.7,4328.6,27.94689742]
[1755746234382,0.3174,4328.7,4328.6,3.28777224]
[1755746234588,0.4706,4328.7,4328.6,6.93577224]
[1755746235282,0.4706,4328.7,4328.6,0.1152]
[1755746235490,0.4706,4328.7,4328.6,3.7632]
[1755746236144,0.5858,4328.7,4328.6,3.648]
[1755746237431,0.5858,4328.7,4327.9,0.1152]
[1755746237637,0.4326,4328.7,4328.0,3.648]
[1755746237943,0.3174,4328.7,4328.1,3.648]
[1755746238245,0.3174,4328.7,4328.2,3.648]
[1755746238429,0.3174,4328.7,4328.3,3.648]
[1755746238845,0.1152,4328.4,4328.3,3.648]
[1755746239142,0.4306,4328.4,4328.3,3.648]
[1755746239358,0.8071,4328.4,4328.3,3.648]
[1755746241132,0.8071,4328.4,4327.3,0.17325975]
[1755746241133,0.8071,4328.4,4327.3,0.001]
[1755746241333,0.1152,4327.6,4327.4,3.647]
[1755746241655,0.3154,4327.5,4327.4,3.647]
[1755746242155,0.1152,4327.6,4327.4,3.647]
[1755746242351,0.244,4327.5,4327.4,3.647]
[1755746242825,0.6912,4327.5,4327.4,3.647]
[1755746243024,0.244,4327.5,4327.4,3.647]
[1755746243522,0.1152,4327.6,4327.4,3.647]
[1755746244463,0.244,4327.5,4327.4,3.647]
[1755746244666,0.244,4327.5,4327.3,0.001]
[1755746244827,0.244,4327.5,4327.4,3.647]
[1755746245021,0.244,4327.5,4327.3,0.001]
[1755746245226,0.244,4327.5,4327.4,3.647]
[1755746246131,0.1152,4327.6,4327.4,3.97320856]
[1755746246327,0.4472,4328.3,4327.4,3.9501]
[1755746246626,0.1152,4328.1,4327.4,4.4993]
[1755746246821,0.1152,4328.1,4327.4,4.0653]
[1755746247037,0.1152,4328.1,4327.4,3.7622]
[1755746248437,0.1152,4328.1,4327.5,21.01112518]
[1755746249165,0.1152,4328.1,4327.5,3.0]
[1755746251726,0.1152,4328.1,4327.5,3.434]
[1755746252959,0.002,4328.7,4327.5,3.434]
[1755746252960,0.002,4328.7,4328.0,0.3031]
[1755746253158,0.1152,4328.4,4328.1,3.66910482]
[1755746253529,0.002,4328.7,4328.3,0.3031]
[1755746253861,0.1172,4328.7,4328.3,0.3031]
[1755746254968,0.1172,4328.7,4328.4,0.02310322]
[1755746255137,0.002,4328.7,4328.6,0.3031]
[1755746255468,0.002,4328.7,4328.6,4.0643]
[1755746255992,0.002,4328.7,4328.6,4.4983]
[1755746257704,0.002,4328.7,4328.6,7.4983]
[1755746257851,0.002,4328.7,4328.6,10.46851577]
[1755746258048,0.002,4328.7,4328.6,10.7143366]
[1755746258353,0.002,4328.7,4328.6,31.72446178]
[1755746258692,0.002,4328.7,4328.6,31.47864095]
[1755746260964,0.002,4328.7,4328.6,27.83364095]
[1755746261166,0.002,4328.7,4328.6,31.47864095]
[1755746261568,0.002,4328.7,4328.6,3.8523]
[1755746261808,0.002,4328.7,4328.6,7.4963]
[1755746261973,0.002,4328.7,4328.6,9.80651577]
[1755746264161,0.002,4328.7,4328.6,10.46651577]
[1755746268305,0.002,4328.7,4328.6,8.1563]
[1755746268460,0.002,4328.7,4328.6,10.46651577]
[1755746268859,0.2288,4328.7,4328.6,3.7582]
[1755746269097,0.693,4328.7,4328.6,3.7582]
[1755746269365,0.693,4328.7,4328.2,0.1152]
[1755746269615,0.4642,4328.6,4328.3,3.642]
[1755746269977,0.3444,4328.4,4328.3,3.642]
[1755746270300,0.8062,4328.4,4328.3,3.642]
[1755746271785,0.3444,4328.4,4328.3,3.642]
[1755746271982,0.002,4328.7,4328.3,27.96732518]
[1755746272203,0.002,4328.7,4328.4,3.47260322]
[1755746272516,0.002,4328.7,4328.4,3.0]
[1755746273592,0.002,4328.7,4328.6,0.3142]
[1755746273789,0.002,4328.7,4328.6,6.9562]
[1755746274389,0.002,4328.7,4328.6,6.642]
[1755746274624,0.002,4328.7,4327.7,2.31069477]
[1755746274625,0.2288,4328.7,4327.3,0.4505]
[1755746274803,0.693,4328.7,4327.7,3.0]
[1755746275693,0.693,4328.7,4327.8,0.001]
[1755746275893,0.693,4328.7,4328.0,3.0]
[1755746276094,0.693,4328.7,4328.3,0.001]
[1755746276328,0.4642,4328.6,4328.4,3.641]
[1755746276528,0.691,4328.5,4328.4,3.641]
[1755746276834,0.691,4328.5,4328.3,0.001]
[1755746277000,0.2292,4328.5,4328.4,3.641]
[1755746277633,0.2292,4328.5,4328.3,3.642]
[1755746277634,0.691,4328.5,4328.3,3.642]
[1755746277994,0.4618,4328.4,4328.3,0.001]
[1755746278215,0.6933,4328.4,4328.3,0.001]
[1755746279099,2.86394252,4328.4,4328.3,0.001]
[1755746281647,3.52394252,4328.4,4328.3,0.001]
[1755746281945,6.52394252,4328.4,4328.3,0.001]
[1755746282117,6.63914252,4328.4,4328.3,0.001]
[1755746283036,3.66,4328.3,4327.8,0.001]
[1755746283231,4.009,4327.9,4327.8,0.001]
[1755746283411,28.66012518,4327.9,4327.8,0.001]
[1755746283615,29.11972518,4327.9,4327.8,0.001]
[1755746287269,3.66,4327.8,4325.9,0.001]
[1755746287421,0.66,4327.2,4325.9,0.001]
[1755746287626,10.07033963,4327.1,4325.9,0.001]
[1755746287836,10.47003963,4327.1,4325.9,0.001]
[1755746288033,3.66,4327.0,4325.9,0.001]
[1755746288264,4.3517,4327.0,4325.9,0.001]
[1755746289164,0.66,4326.8,4325.9,0.001]
[1755746289370,0.66,4326.3,4325.9,0.001]
[1755746289547,0.66,4326.3,4324.8,0.02]
[1755746289548,0.66,4325.9,4324.8,0.02]
[1755746289858,24.96312518,4324.9,4324.8,0.02]
[1755746290054,28.72012518,4324.9,4324.8,0.02]
[1755746290258,31.08226481,4324.9,4324.8,0.02]
[1755746290442,31.48196481,4324.9,4324.8,0.02]
[1755746290946,31.59876274,4324.9,4324.8,0.02]
[1755746291141,31.48196481,4324.9,4324.8,0.02]
[1755746291932,31.48096481,4324.9,4324.8,0.02]
[1755746292457,31.08126481,4324.9,4324.8,0.02]
[1755746292660,9.11913963,4324.9,4324.8,0.02]
[1755746292844,3.757,4324.9,4324.8,0.7541]
[1755746293047,3.641,4324.9,4324.8,0.7541]
[1755746293248,3.757,4324.9,4324.8,0.7541]
[1755746293445,0.116,4324.9,4324.8,0.7541]
[1755746304079,0.116,4324.9,4324.8,0.317]
[1755746304482,0.116,4324.9,4324.8,0.7541]
[1755746309405,0.3453,4324.9,4324.8,0.02]
[1755746309964,21.35642518,4324.9,4324.8,0.02]
[1755746310159,2.94264252,4324.9,4324.8,0.021]
[1755746310360,0.807,4324.9,4324.8,0.021]
[1755746310801,0.3453,4324.9,4324.8,0.021]
[1755746311237,0.116,4324.9,4324.8,0.021]
[1755746311703,0.116,4324.9,4324.8,0.318]
[1755746312491,0.116,4324.9,4324.8,0.021]
[1755746312995,0.4303,4324.9,4324.8,0.021]
[1755746314327,0.8078,4324.9,4324.8,0.021]
[1755746314760,0.4303,4324.9,4324.8,0.021]
[1755746316560,2.57444252,4324.9,4324.8,0.021]
[1755746316747,3.23444252,4324.9,4324.8,0.021]
[1755746316946,6.23444252,4324.9,4324.8,0.021]
[1755746317129,4.0903,4324.9,4324.8,0.021]
[1755746317458,4.30686296,4324.9,4324.8,0.021]
[1755746317671,7.94486296,4324.9,4324.8,0.021]
[1755746318764,8.44395249,4324.9,4324.8,0.021]
[1755746319614,3.66,4324.8,4323.9,0.001]
[1755746319819,25.10142518,4324.0,4323.9,0.001]
[1755746320051,28.95498814,4324.0,4323.9,0.001]
[1755746320249,29.33258814,4324.0,4323.9,0.001]
[1755746320435,29.33235422,4324.0,4323.9,0.001]
[1755746320635,29.83065454,4324.0,4323.9,0.001]
[1755746320969,32.19279417,4324.0,4323.9,0.001]
[1755746322293,32.19362987,4324.0,4323.9,0.001]
[1755746322493,31.69532955,4324.0,4323.9,0.001]
[1755746326944,28.05732955,4324.0,4323.9,0.001]
[1755746327144,31.69432955,4324.0,4323.9,0.001]
[1755746327785,5.79243963,4324.0,4323.9,0.001]
[1755746327983,28.07842518,4324.0,4323.9,0.001]
[1755746328187,28.73842518,4324.0,4323.9,0.001]
[1755746329677,29.11602518,4324.0,4323.9,0.001]
[1755746330073,1.0903,4324.0,4323.9,0.001]
[1755746330273,0.116,4324.0,4323.9,0.2947]
[1755746330474,3.753,4324.0,4323.9,0.7263]
[1755746331035,4.07034608,4324.0,4323.9,0.2947]
[1755746331172,0.66,4323.9,4323.8,0.021]
[1755746331383,0.9515,4323.9,4323.8,0.021]
[1755746332878,4.297,4323.9,4323.8,0.7463]
[1755746333313,4.297,4323.9,4323.8,0.3147]
[1755746333541,26.59055979,4323.9,4323.8,0.021]
[1755746334078,29.59055979,4323.9,4323.8,0.021]
[1755746334303,30.02825979,4323.9,4323.8,0.021]
[1755746336008,30.24376712,4323.9,4323.8,0.021]
[1755746336584,30.24246712,4323.9,4323.8,0.021]
[1755746337012,29.80506712,4323.9,4323.8,0.021]
[1755746337212,29.58955979,4323.9,4323.8,0.021]
[1755746337419,26.39095979,4323.9,4323.8,0.021]
[1755746337618,30.02695979,4323.9,4323.8,0.021]
[1755746337789,30.24249304,4323.9,4323.8,0.021]
[1755746338209,29.58955979,4323.9,4323.8,0.021]
[1755746339615,25.95355979,4323.9,4323.8,0.021]
[1755746339920,29.58955979,4323.9,4323.8,0.021]
[1755746341525,8.32513461,4323.9,4323.8,0.021]
[1755746341691,4.02913461,4323.9,4323.8,0.7463]
[1755746341885,28.67525979,4323.9,4323.8,0.7463]
[1755746342086,29.33525979,4323.9,4323.8,0.3147]
[1755746342335,3.66,4323.8,4323.5,0.4316]
[1755746342488,3.66,4323.6,4323.4,0.001]
[1755746342692,6.635,4323.5,4323.4,0.001]
[1755746343122,6.635,4323.5,4323.4,0.7263]
[1755746343421,3.66,4323.4,4323.3,0.001]
[1755746343619,6.02213963,4323.4,4323.3,0.001]
[1755746344126,6.751,4323.4,4323.3,0.7263]
[1755746344787,7.411,4323.4,4323.3,0.2947]
[1755746344993,7.411,4323.4,4323.3,0.001]
[1755746345888,8.1421,4323.4,4323.3,0.001]
[1755746346511,7.411,4323.4,4323.3,0.001]
[1755746346712,9.77313963,4323.4,4323.3,0.001]
[1755746347707,10.06463963,4323.4,4323.3,0.001]
[1755746348125,10.72093313,4323.4,4323.3,0.001]
[1755746348931,10.93777362,4323.4,4323.3,0.001]
[1755746349548,11.43754292,4323.4,4323.3,0.001]
[1755746349915,10.99829137,4323.4,4323.3,0.001]
[1755746350242,11.43689137,4323.4,4323.3,0.001]
[1755746351748,33.66,4323.3,4321.5,0.4638]
[1755746351954,3.66,4322.4,4321.5,0.4638]
[1755746352173,21.12712518,4321.9,4321.5,0.4638]
[1755746352337,25.42112518,4321.9,4321.8,0.3089]
[1755746352527,28.42112518,4321.9,4321.8,0.02]
[1755746352724,30.78326481,4321.9,4321.8,0.3089]
[1755746353148,31.07096481,4321.9,4319.8,0.02]
[1755746353451,0.66,4321.4,4320.7,0.4638]
[1755746353649,3.633,4321.3,4320.9,0.4638]
[1755746353856,2.20532372,4321.2,4319.8,0.02]
[1755746354182,3.633,4321.1,4321.0,0.4638]
[1755746354362,3.633,4321.1,4319.8,0.02]
[1755746354363,0.116,4320.9,4319.8,0.02]
[1755746354569,3.749,4320.9,4320.8,0.3089]
[1755746355172,3.749,4320.9,4320.8,0.7727]
[1755746355332,3.749,4320.9,4320.8,0.3089]
[1755746355531,6.77113963,4320.9,4320.8,0.02]
[1755746356039,6.13813963,4320.9,4320.8,0.02]
[1755746356251,9.77113963,4320.9,4320.8,0.02]
[1755746356465,10.05883963,4320.9,4320.8,0.02]
[1755746357182,10.53283963,4320.9,4320.8,0.02]
[1755746357380,10.53283963,4320.9,4319.8,0.02]
[1755746357381,24.67112518,4319.9,4319.8,0.02]
[1755746357583,3.749,4319.9,4319.8,0.3089]
[1755746358148,3.749,4319.9,4319.8,0.7727]
[1755746359698,3.749,4319.9,4319.8,0.3089]
[1755746359848,3.749,4319.9,4319.8,0.7727]
[1755746361514,3.749,4319.9,4319.8,0.3089]
[1755746362519,3.749,4319.9,4319.8,0.7727]
[1755746364281,0.116,4319.9,4319.8,0.7727]
[1755746364487,3.749,4319.9,4319.8,0.7727]
[1755746365343,4.1239,4319.9,4319.8,0.02]
[1755746365824,0.4909,4319.9,4319.8,0.3089]
[1755746366117,3.749,4319.9,4319.8,0.3089]
[1755746366904,3.749,4319.9,4319.8,0.02]
[1755746367690,0.116,4319.9,4319.8,0.3089]
[1755746368019,3.748,4319.9,4319.8,0.7727]
[1755746368421,3.749,4319.9,4319.8,0.7727]
[1755746368791,3.0,4320.9,4319.8,0.7727]
[1755746369010,0.116,4319.9,4319.8,0.3089]
[1755746369214,3.748,4319.9,4319.8,0.3089]
[1755746369714,3.748,4319.9,4319.8,0.7727]
[1755746371621,0.116,4319.9,4319.8,0.7727]
[1755746372133,0.116,4320.1,4319.8,0.7727]
[1755746372320,0.116,4320.1,4319.9,0.02314868]
[1755746372521,0.116,4320.1,4320.0,0.2889]
[1755746372826,0.116,4320.1,4320.0,0.7527]
[1755746375155,0.116,4320.4,4320.0,0.7527]
[1755746375362,0.116,4320.4,4320.0,0.2889]
[1755746375559,0.116,4320.4,4320.1,0.4638]
[1755746375725,0.116,4320.4,4320.3,0.2889]
[1755746377464,0.4037,4320.4,4319.8,0.021]
[1755746378270,0.116,4319.9,4319.8,0.021]
[1755746378574,0.116,4319.9,4319.8,0.3099]
[1755746379273,0.116,4319.9,4319.8,0.021]
[1755746379473,0.116,4319.9,4319.8,0.3099]
[1755746379652,0.116,4320.2,4319.8,0.7737]
[1755746379851,0.116,4320.7,4320.1,3.0]
[1755746380054,0.002,4320.9,4320.6,0.2889]
[1755746380561,0.116,4320.8,4320.6,0.2889]
[1755746380761,0.2877,4320.7,4319.9,0.116]
[1755746381077,0.2877,4320.7,4319.8,0.021]
[1755746381078,0.116,4320.1,4319.8,0.021]
[1755746381452,0.116,4320.4,4320.0,0.3065]
[1755746381639,0.002,4320.9,4320.0,0.3065]
[1755746381846,0.116,4320.3,4320.0,0.3065]
[1755746382167,0.116,4320.3,4319.8,0.021]
[1755746382168,0.3142,4320.1,4319.8,0.021]
[1755746382342,0.116,4319.9,4319.8,0.021]
[1755746382540,0.4302,4319.9,4319.8,0.021]
[1755746382776,1.28152,4319.9,4319.8,0.021]
[1755746383883,3.746,4319.9,4319.8,0.3275]
[1755746385366,0.116,4319.9,4319.8,0.3275]
[1755746386404,0.116,4319.9,4319.8,0.021]
[1755746386609,0.116,4319.9,4319.8,0.3275]
[1755746386780,0.116,4319.9,4319.8,0.7954]
[1755746387101,0.116,4319.9,4319.8,0.3275]
[1755746387669,0.116,4319.9,4319.8,0.021]
[1755746388699,0.116,4319.9,4319.8,0.3275]
[1755746390028,0.116,4319.9,4319.8,0.021]
[1755746390911,0.4302,4319.9,4319.8,0.021]
[1755746391224,1.25,4319.9,4319.8,0.021]
[1755746394022,7.878,4319.9,4319.8,0.021]
[1755746394428,8.538,4319.9,4319.8,0.021]
[1755746394830,24.67112518,4319.4,4319.3,0.001]
[1755746394999,28.72932518,4319.4,4319.3,0.001]
[1755746395197,29.17462518,4319.4,4319.3,0.001]
[1755746396736,25.54662518,4319.4,4319.3,0.001]
[1755746397033,29.17462518,4319.4,4319.3,0.001]
[1755746397239,31.53676481,4319.4,4319.3,0.001]
[1755746397399,24.90876481,4319.4,4319.3,0.001]
[1755746397601,6.42033963,4319.4,4319.3,0.001]
[1755746397802,4.0582,4319.4,4319.3,0.001]
[1755746398001,26.17462518,4319.4,4319.3,0.001]
[1755746398227,22.54662518,4319.4,4319.3,0.001]
[1755746398536,25.72932518,4319.4,4319.3,0.001]
[1755746398950,22.54662518,4319.4,4319.3,0.001]
[1755746399137,28.4292877,4319.4,4319.3,0.001]
[1755746399317,31.3132877,4319.4,4319.3,0.001]
[1755746399515,10.30216252,4319.4,4319.3,0.001]
[1755746399844,29.05862518,4319.4,4319.3,0.001]
[1755746400550,25.43062518,4319.4,4319.3,0.001]
[1755746400864,29.05862518,4319.4,4319.3,0.001]
[1755746401664,29.05862518,4319.4,4317.8,0.02]
[1755746401665,3.66,4319.3,4317.8,0.02]
[1755746401976,24.98532518,4318.9,4317.8,0.02]
[1755746402174,30.97546481,4318.9,4317.8,0.02]
[1755746402331,30.97546481,4318.9,4318.4,0.001]
[1755746402527,31.42076481,4318.9,4318.4,0.001]
[1755746403451,31.41976481,4318.9,4318.4,0.001]
[1755746403781,6.33633963,4318.9,4318.4,0.001]
[1755746403981,0.8538,4319.8,4318.8,0.3265]
[1755746404276,3.0,4319.6,4318.8,0.3265]
[1755746404429,21.01112518,4319.8,4318.8,0.3265]
[1755746404636,3.628,4319.7,4318.8,0.3265]
[1755746404863,6.628,4319.7,4318.8,0.3265]
[1755746405164,3.0,4319.6,4318.8,0.3265]
[1755746405343,2.36213963,4319.5,4318.8,0.3265]
[1755746405732,3.628,4319.4,4318.8,0.3265]
[1755746405930,21.32532518,4318.9,4318.8,0.02]
[1755746406164,25.61332518,4318.9,4318.8,0.02]
[1755746406333,26.05862518,4318.9,4318.8,0.02]
[1755746406533,28.42076481,4318.9,4318.8,0.02]
[1755746407463,24.79276481,4318.9,4318.8,0.02]
[1755746407783,24.79276481,4318.9,4318.8,0.7944]
[1755746407784,3.628,4318.9,4318.8,0.7944]
[1755746408652,0.4453,4321.3,4318.8,0.7944]
[1755746408954,3.627,4320.4,4319.0,21.01112518]
[1755746409129,3.627,4320.4,4319.1,0.4679]
[1755746409333,0.116,4319.5,4319.1,0.4679]
[1755746409532,0.116,4319.5,4319.4,0.3065]
[1755746409760,0.116,4319.5,4319.4,0.7744]
[1755746410269,3.743,4319.5,4319.4,0.3065]
[1755746410564,4.877,4319.5,4318.8,0.021]
[1755746410768,4.761,4319.5,4318.8,0.021]
[1755746410969,0.116,4318.9,4318.8,0.021]
[1755746411269,3.743,4318.9,4318.8,0.021]
[1755746411475,6.83373963,4318.9,4318.8,0.021]
[1755746413246,7.49373963,4318.9,4318.8,0.021]
[1755746416473,10.49373963,4318.9,4318.8,0.021]
[1755746416660,6.10513963,4318.9,4318.8,0.021]
[1755746416837,3.743,4318.9,4318.8,0.021]
[1755746417841,25.04572518,4318.9,4318.8,0.021]
[1755746418043,29.14272518,4318.9,4318.8,0.021]
[1755746418670,28.70572518,4318.9,4318.8,0.021]
[1755746418874,31.38886481,4318.9,4318.8,0.021]
[1755746419580,27.76186481,4318.9,4318.8,0.021]
[1755746419743,30.95186481,4318.9,4318.8,0.021]
[1755746420172,27.32486481,4318.9,4318.8,0.021]
[1755746420379,30.95186481,4318.9,4318.8,0.021]
[1755746421348,31.38886481,4318.9,4318.8,0.021]
[1755746421551,30.95186481,4318.9,4318.8,0.021]
[1755746423072,31.38886481,4318.9,4318.8,0.021]
[1755746423659,27.76186481,4318.9,4318.8,0.021]
[1755746423985,31.38886481,4318.9,4318.8,0.021]
[1755746425943,27.76186481,4318.9,4318.8,0.021]
[1755746426147,30.00026481,4318.9,4318.8,0.021]
[1755746426577,30.66026481,4318.9,4318.8,0.021]
[1755746426784,5.36213963,4318.9,4318.8,0.021]